bitfinex-derivatives/quotes_BTCF0:USTF0_20260315
["timestamp","ask_amount","ask_price","bid_price","bid_amount"]
[1773536427717,0.10036948,71070.0,71049.0,0.0309747]
[1773536427902,0.02466718,71069.0,71049.0,0.0014]
[1773536428106,0.042209,71057.0,71049.0,0.0014]
[1773536428505,0.042209,71057.0,71042.0,0.01125]
[1773536428702,0.042209,71057.0,71043.0,0.0323747]
[1773536429103,0.042209,71057.0,71044.0,0.042216]
[1773536429509,0.042209,71057.0,71045.0,0.0014]
[1773536429911,0.042209,71057.0,71046.0,0.0014]
[1773536430423,0.042209,71057.0,71043.0,0.0309747]
[1773536430720,0.02347268,71059.0,71043.0,0.0014]
[1773536431218,0.042212,71052.0,71042.0,0.01125]
[1773536431419,0.042212,71052.0,71042.0,0.01265]
[1773536432921,0.042212,71052.0,71042.0,0.0014]
[1773536433519,0.042212,71052.0,71042.0,0.01125]
[1773536434315,0.042212,71052.0,71042.0,0.01265]
[1773536434618,0.042212,71052.0,71042.0,0.01125]
[1773536436422,0.042212,71052.0,71042.0,0.0436247]
[1773536439124,0.01125,71062.0,71042.0,0.0436247]
[1773536439125,0.01125,71062.0,71044.0,0.0309747]
[1773536439331,0.01265,71062.0,71046.0,0.0309747]
[1773536439527,0.042208,71058.0,71046.0,0.0309747]
[1773536439726,0.01265,71062.0,71046.0,0.0309747]
[1773536440232,0.01125,71062.0,71046.0,0.0309747]
[1773536440532,0.0014,71061.0,71046.0,0.0309747]
[1773536440829,0.042209,71056.0,71044.0,0.0014]
[1773536441633,0.042209,71056.0,71043.0,0.042217]
[1773536441823,0.042209,71056.0,71044.0,0.0014]
[1773536443125,0.042211,71054.0,71042.0,0.01125]
[1773536443428,0.10835455,71060.0,71042.0,0.01125]
[1773536443629,0.01923507,71060.0,71042.0,0.01125]
[1773536444328,0.04221,71055.0,71042.0,0.01265]
[1773536444718,0.04221,71055.0,71042.0,0.01125]
[1773536444919,0.04221,71055.0,71042.0,0.01265]
[1773536445231,0.04221,71055.0,71042.0,0.01125]
[1773536445426,0.01923507,71060.0,71042.0,0.01265]
[1773536445633,0.042211,71053.0,71039.0,0.043619]
[1773536446133,0.042212,71051.0,71040.0,0.0014]
[1773536446428,0.042212,71051.0,71044.0,0.01125]
[1773536446726,0.042213,71049.0,71044.0,0.01125]
[1773536446921,0.042213,71049.0,71036.0,0.0309747]
[1773536447119,0.042214,71047.0,71035.0,0.0014]
[1773536447319,0.053464,71047.0,71034.0,0.043622]
[1773536447520,0.01125,71047.0,71035.0,0.042221]
[1773536447727,0.01125,71047.0,71036.0,0.042221]
[1773536447933,0.042214,71049.0,71037.0,0.04222]
[1773536448235,0.042214,71049.0,71037.0,0.0731947]
[1773536448830,0.042212,71051.0,71037.0,0.0309747]
[1773536449032,0.042211,71054.0,71041.0,0.0309747]
[1773536449337,0.042209,71056.0,71043.0,0.0309747]
[1773536449539,0.01125,71048.0,71044.0,0.0309747]
[1773536450624,0.01125,71048.0,71040.0,0.042218]
[1773536450831,0.01125,71048.0,71041.0,0.0014]
[1773536451235,0.01125,71048.0,71038.0,0.042219]
[1773536451544,0.01125,71048.0,71037.0,0.0014]
[1773536451729,0.01125,71048.0,71031.0,0.03010287]
[1773536451931,0.01125,71048.0,71033.0,0.03010287]
[1773536452443,0.01125,71048.0,71037.0,0.04222]
[1773536452944,0.01125,71048.0,71037.0,0.04362]
[1773536453625,0.01125,71048.0,71038.0,0.042219]
[1773536454942,0.01125,71048.0,71037.0,0.0014]
[1773536455144,0.01125,71048.0,71037.0,0.04362]
[1773536455531,0.01125,71048.0,71037.0,0.04222]
[1773536455833,0.01125,71048.0,71037.0,0.07232287]
[1773536457241,0.01125,71048.0,71038.0,0.07232187]
[1773536457431,0.01125,71048.0,71039.0,0.03010287]
[1773536467043,0.21452524,71047.0,71031.0,0.03010287]
[1773536467250,0.21452524,71046.0,71031.0,0.03010287]
[1773536467448,0.042217,71044.0,71031.0,0.03010287]
[1773536467636,0.043617,71044.0,71031.0,0.03010287]
[1773536467943,0.043617,71044.0,71031.0,0.042223]
[1773536468145,0.043617,71044.0,71033.0,0.03010287]
[1773536468551,0.0014,71044.0,71034.0,0.03010287]
[1773536468849,0.0014,71044.0,71035.0,0.03010287]
[1773536469538,0.0014,71055.0,71037.0,0.03010287]
[1773536469739,4.6e-07,71054.0,71048.0,0.03010287]
[1773536470053,0.0058846,71075.0,71045.0,0.03010287]
[1773536470242,0.0014,71074.0,71045.0,0.03010287]
[1773536470441,0.042204,71065.0,71044.0,0.0014]
[1773536470642,0.0014,71064.0,71058.0,0.01125]
[1773536470850,0.0014,71063.0,71052.0,0.03010287]
[1773536471242,0.01125,71061.0,71052.0,0.03010287]
[1773536471753,0.01125,71061.0,71052.0,0.03808512]
[1773536472049,0.0014,71061.0,71052.0,0.00798225]
[1773536472242,0.043606,71061.0,71052.0,0.00798225]
[1773536472552,0.0014,71061.0,71052.0,0.00798225]
[1773536476751,0.0014,71061.0,71052.0,0.03808512]
[1773536477546,0.0014,71061.0,71052.0,0.00798225]
[1773536480456,0.0014,71061.0,71050.0,0.042212]
[1773536481857,0.0014,71061.0,71050.0,0.0727325]
[1773536483158,0.0014,71061.0,71051.0,0.0305205]
[1773536483960,0.0014,71061.0,71051.0,0.0727325]
[1773536484157,0.0014,71061.0,71052.0,0.0305205]
[1773536484557,0.0014,71060.0,71056.0,0.0305205]
[1773536484755,0.0014,71061.0,71056.0,0.0305205]
[1773536485561,0.0014,71061.0,71057.0,0.01125]
[1773536485748,0.0014,71061.0,71057.0,0.0417705]
[1773536486256,0.01125,71060.0,71057.0,0.0417705]
[1773536487158,0.01125,71060.0,71057.0,0.01125]
[1773536487658,0.01125,71060.0,71058.0,0.0305205]
[1773536491948,0.01125,71060.0,71049.0,0.042213]
[1773536492149,0.0014,71061.0,71058.0,0.00798225]
[1773536493853,0.01265,71061.0,71058.0,0.00798225]
[1773536494051,0.01265,71061.0,71053.0,0.0305205]
[1773536494360,0.054856,71061.0,71053.0,0.0305205]
[1773536494863,0.054856,71061.0,71049.0,0.0727335]
[1773536497366,0.042208,71058.0,71049.0,0.0305205]
[1773536498062,0.042207,71060.0,71049.0,0.0305205]
[1773536499069,0.042208,71059.0,71049.0,0.0305205]
[1773536499565,0.042209,71057.0,71049.0,0.0305205]
[1773536503068,0.20479342,71056.0,71049.0,0.0305205]
[1773536503367,0.042209,71057.0,71049.0,0.0305205]
[1773536503567,0.20478882,71056.0,71049.0,0.0305205]
[1773536503757,0.042209,71057.0,71049.0,0.0305205]
[1773536503960,0.2047888,71056.0,71049.0,0.0305205]
[1773536504162,0.042209,71057.0,71049.0,0.0305205]
[1773536504470,0.20478545,71056.0,71049.0,0.0305205]
[1773536504670,0.042209,71056.0,71049.0,0.0305205]
[1773536504866,0.042211,71054.0,71038.0,0.0305205]
[1773536505078,0.042213,71050.0,71038.0,0.0305205]
[1773536505772,0.042213,71050.0,71039.0,0.0305205]
[1773536506366,0.043613,71050.0,71039.0,0.0305205]
[1773536515976,0.043613,71050.0,71038.0,0.042219]
[1773536515977,0.042216,71046.0,71035.0,0.0014]
[1773536517074,0.042216,71046.0,71034.0,0.042222]
[1773536517578,0.042214,71048.0,71034.0,0.042222]
[1773536518178,0.042214,71048.0,71035.0,0.042221]
[1773536518482,0.042215,71047.0,71032.0,0.03001901]
[1773536518779,0.042215,71047.0,71035.0,0.042221]
[1773536527988,0.042214,71049.0,71036.0,0.042221]
[1773536532994,0.042214,71048.0,71036.0,0.042221]
[1773536534897,0.043613,71050.0,71038.0,0.03001901]
[1773536535096,0.043613,71050.0,71038.0,0.07223801]
[1773536535682,0.043613,71050.0,71038.0,0.042219]
[1773536535887,0.043613,71050.0,71039.0,0.03001901]
[1773536536999,0.042213,71049.0,71039.0,0.03001901]
[1773536538992,0.042213,71049.0,71036.0,0.042221]
[1773536544393,0.042213,71049.0,71036.0,0.07000516]
[1773536548099,0.042214,71048.0,71036.0,0.042221]
[1773536548405,0.042215,71047.0,71035.0,0.042221]
[1773536549195,0.042215,71047.0,71035.0,0.07000516]
[1773536549999,0.042215,71047.0,71036.0,0.042221]
[1773536550301,0.042214,71049.0,71036.0,0.042221]
[1773536552907,0.20511298,71048.0,71036.0,0.042221]
[1773536553110,0.20511298,71047.0,71036.0,0.042221]
[1773536553304,0.042214,71049.0,71036.0,0.042221]
[1773536553305,0.20511298,71046.0,71036.0,0.042221]
[1773536553506,0.20511298,71045.0,71036.0,0.042221]
[1773536553704,0.0014,71044.0,71036.0,0.042221]
[1773536556910,0.0014,71044.0,71028.0,0.02778416]
[1773536557103,0.0014,71044.0,71018.0,0.042231]
[1773536557104,0.02747043,71039.0,71018.0,0.042231]
[1773536557308,0.02747043,71037.0,71018.0,0.042231]
[1773536557508,0.2050703,71036.0,71018.0,0.042231]
[1773536557703,0.2064703,71035.0,71018.0,0.07001516]
[1773536557903,0.2050703,71034.0,71019.0,0.02778416]
[1773536559006,0.042224,71031.0,71019.0,0.02778416]
[1773536561314,0.0014,71036.0,71026.0,0.02778416]
[1773536561512,0.20607676,71035.0,71026.0,0.02778416]
[1773536561712,0.0014,71035.0,71026.0,0.02778416]
[1773536562406,0.0014,71042.0,71032.0,0.02778416]
[1773536562614,0.20465879,71041.0,71032.0,0.02778416]
[1773536562815,0.20465879,71040.0,71032.0,0.02778416]
[1773536563016,0.0014,71042.0,71033.0,0.02778416]
[1773536566121,0.042216,71045.0,71033.0,0.02778416]
[1773536566323,0.0014,71044.0,71033.0,0.02778416]
[1773536570126,0.043617,71044.0,71033.0,0.02778416]
[1773536572829,0.0014,71043.0,71033.0,0.02778416]
[1773536573627,0.043617,71043.0,71033.0,0.02778416]
[1773536576432,0.0014,71043.0,71033.0,0.02778416]
[1773536579432,0.042216,71045.0,71033.0,0.02778416]
[1773536579632,0.0014,71044.0,71033.0,0.02778416]
[1773536585738,0.042216,71045.0,71033.0,0.02778416]
[1773536586040,0.0014,71044.0,71033.0,0.02778416]
[1773536590344,0.043616,71044.0,71033.0,0.02778416]
[1773536591150,0.01125,71048.0,71034.0,0.02641607]
[1773536591349,0.20692647,71047.0,71034.0,0.02641607]
[1773536591638,0.20552647,71046.0,71034.0,0.02641607]
[1773536591846,0.01125,71048.0,71036.0,0.02641607]
[1773536591847,0.20552647,71045.0,71036.0,0.02641607]
[1773536592042,0.0014,71044.0,71036.0,0.02641607]
[1773536592438,0.0014,71043.0,71036.0,0.02641607]
[1773536592944,0.0014,71042.0,71036.0,0.02641607]
[1773536596549,0.0014,71042.0,71033.0,0.042223]
[1773536597548,0.0014,71042.0,71033.0,0.06863907]
[1773536597952,0.0014,71042.0,71033.0,0.042223]
[1773536598250,0.0014,71042.0,71034.0,0.02641607]
[1773536602753,0.0014,71042.0,71035.0,0.0248125]
[1773536602954,0.20375267,71041.0,71035.0,0.0248125]
[1773536603148,0.0014,71042.0,71035.0,0.0248125]
[1773536603456,0.01125,71048.0,71035.0,0.0248125]
[1773536603656,0.0014,71042.0,71035.0,0.0248125]
[1773536604955,0.01125,71048.0,71035.0,0.0248125]
[1773536605161,0.01125,71048.0,71036.0,0.0248125]
[1773536605355,0.0014,71047.0,71037.0,0.0248125]
[1773536605558,0.042209,71056.0,71037.0,0.0248125]
[1773536605760,0.0014,71055.0,71041.0,0.0248125]
[1773536605947,0.0014,71054.0,71041.0,0.0248125]
[1773536606151,0.0891944,71060.0,71041.0,0.0248125]
[1773536606359,0.0014,71059.0,71041.0,0.0248125]
[1773536606861,0.01125,71055.0,71041.0,0.0248125]
[1773536607058,0.001,71054.0,71041.0,0.0248125]
[1773536607767,0.001,71054.0,71045.0,0.0248125]
[1773536607768,0.0014,71053.0,71045.0,0.0248125]
[1773536607949,0.0014,71052.0,71045.0,0.0248125]
[1773536608156,0.0014,71052.0,71047.0,0.0248125]
[1773536608458,0.0014,71054.0,71047.0,0.0248125]
[1773536608648,0.042205,71064.0,71047.0,0.0248125]
[1773536608854,0.0014,71063.0,71047.0,0.0248125]
[1773536609054,0.001,71059.0,71047.0,0.042214]
[1773536609259,0.001,71059.0,71048.0,0.0248125]
[1773536609663,0.042205,71064.0,71050.0,0.0248125]
[1773536609664,0.0014,71058.0,71050.0,0.0248125]
[1773536609966,0.0014,71057.0,71050.0,0.0248125]
[1773536611071,0.01125,71063.0,71050.0,0.0248125]
[1773536611274,0.0014,71062.0,71050.0,0.0248125]
[1773536611769,0.0014,71061.0,71050.0,0.0248125]
[1773536612171,0.01125,71063.0,71050.0,0.0248125]
[1773536612365,0.0014,71062.0,71050.0,0.0248125]
[1773536612867,0.0014,71061.0,71050.0,0.0248125]
[1773536613267,0.0014,71060.0,71050.0,0.0248125]
[1773536613769,0.0014,71059.0,71050.0,0.0248125]
[1773536614264,0.0014,71058.0,71050.0,0.0248125]
[1773536614659,0.01125,71063.0,71050.0,0.0248125]
[1773536614860,0.0014,71062.0,71050.0,0.0248125]
[1773536615169,0.01125,71063.0,71050.0,0.0248125]
[1773536615471,0.20433247,71062.0,71050.0,0.0248125]
[1773536615675,0.01125,71063.0,71050.0,0.0248125]
[1773536615974,0.20433249,71062.0,71050.0,0.0248125]
[1773536616174,0.0014,71062.0,71050.0,0.0248125]
[1773536617274,0.01125,71063.0,71050.0,0.0248125]
[1773536617474,0.0014,71061.0,71050.0,0.0248125]
[1773536617878,0.0014,71060.0,71050.0,0.0248125]
[1773536618279,0.01125,71063.0,71050.0,0.0248125]
[1773536618579,0.0014,71059.0,71050.0,0.0248125]
[1773536618780,0.01125,71063.0,71050.0,0.0248125]
[1773536618979,0.0014,71058.0,71050.0,0.0248125]
[1773536619278,0.053455,71063.0,71050.0,0.0248125]
[1773536619478,0.0014,71058.0,71050.0,0.0248125]
[1773536642999,0.20139059,71057.0,71050.0,0.0248125]
[1773536643194,0.20139059,71056.0,71050.0,0.0248125]
[1773536643497,0.0014,71058.0,71050.0,0.0248125]
[1773536643498,0.20139059,71055.0,71050.0,0.0248125]
[1773536643684,0.20139059,71054.0,71050.0,0.0248125]
[1773536643889,0.20139059,71053.0,71050.0,0.0248125]
[1773536644090,0.0014,71058.0,71050.0,0.0248125]
[1773536644396,0.12843414,71057.0,71050.0,0.0248125]
[1773536644597,0.0014,71058.0,71050.0,0.0248125]
[1773536645189,0.01125,71055.0,71050.0,0.0248125]
[1773536645801,0.0014,71058.0,71050.0,0.0248125]
[1773536647904,0.0014,71058.0,71053.0,0.01125]
[1773536648393,0.0014,71058.0,71054.0,0.02606109]
[1773536648702,0.01125,71055.0,71054.0,0.02606109]
[1773536648999,0.0014,71058.0,71054.0,0.02606109]
[1773536649200,0.44612,71081.0,71054.0,0.02606109]
[1773536649390,0.042197,71077.0,71054.0,0.02606109]
[1773536649594,0.0014,71076.0,71061.0,0.02606109]
[1773536649895,0.042197,71077.0,71052.0,0.02606109]
[1773536650098,0.0014,71076.0,71061.0,0.02606109]
[1773536650503,0.03183107,71099.0,71068.0,0.02606109]
[1773536650711,0.53140267,71105.0,71074.0,0.02606109]
[1773536650712,0.001,71076.0,71074.0,0.02606109]
[1773536651007,0.001,71076.0,71067.0,0.02606109]
[1773536651309,0.01125,71083.0,71067.0,0.02606109]
[1773536651999,0.02451575,71079.0,71058.0,0.02606109]
[1773536652196,0.042202,71068.0,71053.0,0.02746109]
[1773536652392,0.043602,71068.0,71053.0,0.02746109]
[1773536652798,0.042203,71067.0,71053.0,0.02746109]
[1773536653804,0.042203,71067.0,71053.0,0.02606109]
[1773536659208,0.042203,71067.0,71055.0,0.02606109]
[1773536661108,0.042203,71067.0,71051.0,0.01265]
[1773536661109,0.02451575,71067.0,71051.0,0.01125]
[1773536661705,0.0014,71068.0,71051.0,0.01125]
[1773536662209,0.042207,71061.0,71051.0,0.03769064]
[1773536662506,0.043607,71061.0,71051.0,0.03769064]
[1773536664807,0.0014,71061.0,71051.0,0.01125]
[1773536666101,0.042208,71059.0,71051.0,0.01125]
[1773536670405,0.0014,71061.0,71044.0,0.02644064]
[1773536670611,0.042212,71051.0,71040.0,0.02644064]
[1773536670813,0.042213,71050.0,71040.0,0.02644064]
[1773536671309,0.042213,71050.0,71044.0,0.01125]
[1773536671915,0.01125,71047.0,71044.0,0.01125]
[1773536673516,0.0014,71052.0,71034.0,0.0014]
[1773536673812,0.0014,71052.0,71031.0,0.00070392]
[1773536673813,0.02436824,71049.0,71031.0,0.00070392]
[1773536674015,0.04222,71038.0,71031.0,0.00070392]
[1773536674517,0.0014,71040.0,71028.0,0.01126]
[1773536674518,0.042221,71037.0,71028.0,0.01126]
[1773536675516,0.042221,71037.0,71024.0,0.02644064]
[1773536677225,0.042222,71036.0,71021.0,0.04363]
[1773536677921,0.042222,71036.0,71021.0,0.04223]
[1773536679113,0.042222,71036.0,71022.0,0.042229]
[1773536680124,0.042222,71035.0,71022.0,0.042229]
[1773536680321,0.0014,71034.0,71022.0,0.042229]
[1773536681123,0.0014,71034.0,71018.0,0.01126]
[1773536681323,0.042224,71031.0,71018.0,0.053491]
[1773536683022,0.042224,71031.0,71018.0,0.042231]
[1773536683725,0.042223,71033.0,71018.0,0.042231]
[1773536684324,0.042223,71033.0,71019.0,0.042231]
[1773536687824,0.0014,71034.0,71010.0,0.01126]
[1773536687825,0.02436824,71028.0,71010.0,0.01126]
[1773536688021,0.042229,71023.0,71010.0,0.01126]
[1773536688221,0.0014,71022.0,71010.0,0.01126]
[1773536688622,0.0014,71022.0,71010.0,0.053496]
[1773536689018,0.0014,71022.0,71011.0,0.042235]
[1773536692532,0.0014,71022.0,71012.0,0.042235]
[1773536695539,0.01125,71048.0,71013.0,0.02401005]
[1773536695837,0.04222,71039.0,71027.0,0.02401005]
[1773536696023,0.0014,71038.0,71027.0,0.02401005]
[1773536696437,0.0014,71038.0,71011.0,0.03122601]
[1773536696438,0.02672665,71038.0,71011.0,0.03262601]
[1773536696635,0.02672665,71038.0,71013.0,0.02401005]
[1773536697139,0.042223,71033.0,71020.0,0.04223]
[1773536698433,0.001,71039.0,71021.0,0.02401005]
[1773536698736,0.001,71039.0,71020.0,0.08918624]
[1773536698737,0.042219,71040.0,71024.0,0.042228]
[1773536699033,0.042221,71037.0,71023.0,0.042228]
[1773536699333,0.042221,71037.0,71024.0,0.042228]
[1773536699831,0.02532665,71040.0,71020.0,0.08918624]
[1773536700031,0.0014,71039.0,71028.0,0.042226]
[1773536700333,0.0014,71038.0,71026.0,0.042227]
[1773536700526,0.02672665,71037.0,71018.0,0.01126]
[1773536700726,0.0014,71037.0,71021.0,0.02401005]
[1773536701033,0.0014,71037.0,71024.0,0.042228]
[1773536701226,0.0014,71037.0,71025.0,0.042227]
[1773536701427,0.0014,71037.0,71027.0,0.042226]
[1773536701824,0.41917247,71078.0,71033.0,0.02401005]
[1773536702023,0.042203,71067.0,71051.0,0.02401005]
[1773536702333,0.0014,71066.0,71053.0,0.042211]
[1773536702528,0.02532665,71079.0,71057.0,0.02401005]
[1773536702737,0.0014,71078.0,71061.0,0.02401005]
[1773536702925,0.043597,71077.0,71064.0,0.02401005]
[1773536703126,0.0014,71076.0,71064.0,0.02401005]
[1773536703635,0.0014,71075.0,71064.0,0.02401005]
[1773536704236,0.0014,71074.0,71064.0,0.02401005]
[1773536704438,0.0014,71073.0,71064.0,0.02401005]
[1773536704932,0.033597,71077.0,71068.0,0.01125]
[1773536705135,0.0014,71073.0,71068.0,0.01125]
[1773536705533,0.01125,71071.0,71068.0,0.01125]
[1773536708338,0.03730963,71097.0,71064.0,0.02401005]
[1773536708339,0.0014,71076.0,71064.0,0.02401005]
[1773536708742,0.042196,71078.0,71064.0,0.02401005]
[1773536708939,0.0014,71077.0,71064.0,0.03526005]
[1773536709135,0.043597,71077.0,71064.0,0.03526005]
[1773536709441,0.0014,71076.0,71064.0,0.03526005]
[1773536709834,0.0014,71075.0,71064.0,0.03526005]
[1773536710343,0.0014,71074.0,71064.0,0.03526005]
[1773536710733,0.042197,71077.0,71064.0,0.03526005]
[1773536711037,0.0014,71076.0,71064.0,0.03526005]
[1773536711238,0.042197,71077.0,71064.0,0.03526005]
[1773536711542,0.0014,71076.0,71064.0,0.03526005]
[1773536711742,0.042197,71077.0,71064.0,0.03526005]
[1773536711943,0.0014,71076.0,71064.0,0.03526005]
[1773536712339,0.0014,71075.0,71064.0,0.03526005]
[1773536713634,0.0014,71075.0,71065.0,0.02401005]
[1773536713836,0.042197,71077.0,71065.0,0.02401005]
[1773536714037,0.0014,71075.0,71065.0,0.02401005]
[1773536714340,0.042198,71076.0,71065.0,0.02401005]
[1773536714544,0.0014,71075.0,71065.0,0.02401005]
[1773536714740,0.01125,71085.0,71065.0,0.02401005]
[1773536714946,0.0014,71080.0,71065.0,0.02401005]
[1773536716048,0.042196,71078.0,71065.0,0.02401005]
[1773536718352,0.042197,71077.0,71065.0,0.02401005]
[1773536726254,0.042207,71060.0,71047.0,0.0251629]
[1773536726457,0.042208,71059.0,71047.0,0.0251629]
[1773536726651,0.043608,71059.0,71047.0,0.0251629]
[1773536727457,0.043608,71059.0,71052.0,0.01125]
[1773536728061,0.01125,71054.0,71052.0,0.01125]
[1773536733245,0.01125,71054.0,71046.0,0.042215]
[1773536733453,0.043608,71058.0,71046.0,0.042215]
[1773536734955,0.0014,71058.0,71047.0,0.0673769]
[1773536735353,0.01125,71056.0,71047.0,0.0673769]
[1773536737159,0.01125,71056.0,71048.0,0.042214]
[1773536740860,0.01125,71056.0,71042.0,0.0251629]
[1773536741056,0.01125,71056.0,71041.0,0.042218]
[1773536741359,0.01125,71056.0,71038.0,0.01265]
[1773536741959,0.04221,71054.0,71042.0,0.042217]
[1773536748164,0.02424415,71055.0,71038.0,0.01125]
[1773536748664,0.02424415,71055.0,71039.0,0.042219]
[1773536749966,0.042212,71052.0,71039.0,0.042219]
[1773536750163,0.0014,71051.0,71039.0,0.042219]
[1773536750865,0.0014,71051.0,71040.0,0.042218]
[1773536753162,0.02472335,71051.0,71038.0,0.01125]
[1773536753965,0.042214,71049.0,71038.0,0.01125]
[1773536754565,0.042214,71049.0,71036.0,0.042221]
[1773536754766,0.042214,71049.0,71037.0,0.04222]
[1773536754963,0.02332335,71066.0,71040.0,0.02477518]
[1773536755269,0.0014,71065.0,71047.0,0.02477518]
[1773536755468,0.0014,71064.0,71047.0,0.02477518]
[1773536755668,0.02332335,71069.0,71047.0,0.02477518]
[1773536755870,0.02472335,71068.0,71047.0,0.02477518]
[1773536756071,0.01125,71056.0,71047.0,0.02477518]
[1773536757467,0.0014,71057.0,71047.0,0.02477518]
[1773536758875,0.01125,71056.0,71047.0,0.02477518]
[1773536763068,0.042204,71065.0,71047.0,0.02477518]
[1773536763283,0.042204,71066.0,71052.0,0.042211]
[1773536763572,0.0014,71065.0,71053.0,0.06698518]
[1773536763963,0.0014,71065.0,71055.0,0.01125]
[1773536764574,0.01125,71057.0,71055.0,0.01125]
[1773536764775,0.0014,71065.0,71055.0,0.01125]
[1773536764976,0.043604,71065.0,71055.0,0.01125]
[1773536765175,0.042205,71064.0,71055.0,0.01125]
[1773536765376,0.042205,71064.0,71051.0,0.042212]
[1773536765577,0.0014,71065.0,71047.0,0.0014]
[1773536765578,0.02332335,71063.0,71047.0,0.0014]
[1773536766771,0.02332335,71063.0,71046.0,0.042215]
[1773536766971,0.042207,71060.0,71046.0,0.042215]
[1773536767171,0.0014,71059.0,71046.0,0.042215]
[1773536767375,0.0014,71059.0,71053.0,0.01125]
[1773536772481,0.0014,71059.0,71040.0,0.11394095]
[1773536772686,0.042209,71056.0,71043.0,0.042216]
[1773536772892,0.042208,71058.0,71045.0,0.042215]
[1773536773074,0.0014,71059.0,71046.0,0.042215]
[1773536774287,0.0014,71059.0,71051.0,0.01125]
[1773536774987,0.01125,71054.0,71051.0,0.01125]
[1773536777488,0.0014,71059.0,71051.0,0.01125]
[1773536777689,0.0014,71059.0,71048.0,0.02477518]
[1773536778590,0.0014,71059.0,71048.0,0.03602518]
[1773536781490,0.043608,71059.0,71048.0,0.03602518]
[1773536784387,0.0014,71059.0,71042.0,0.0014]
[1773536784594,0.02502337,71059.0,71042.0,0.043617]
[1773536784789,0.02502337,71059.0,71044.0,0.042216]
[1773536784994,0.0014,71058.0,71044.0,0.042216]
[1773536785795,0.0014,71058.0,71048.0,0.01125]
[1773536785998,0.04221,71056.0,71048.0,0.01125]
[1773536787595,0.04221,71056.0,71044.0,0.042216]
[1773536788296,0.04221,71056.0,71051.0,0.01125]
[1773536788996,0.01125,71053.0,71051.0,0.01125]
[1773536790394,0.04221,71056.0,71051.0,0.01125]
[1773536790596,0.04221,71056.0,71044.0,0.042216]
[1773536791291,0.04221,71056.0,71051.0,0.01125]
[1773536792097,0.01125,71053.0,71051.0,0.01125]
[1773536792502,0.04221,71056.0,71044.0,0.042216]
[1773536793293,0.04221,71056.0,71049.0,0.01125]
[1773536796198,0.043608,71058.0,71049.0,0.01125]
[1773536796397,0.042209,71057.0,71049.0,0.01125]
[1773536798001,0.0014,71058.0,71049.0,0.01125]
[1773536799099,0.042209,71056.0,71049.0,0.01125]
[1773536804994,0.043608,71058.0,71049.0,0.01125]
[1773536805701,0.042209,71057.0,71049.0,0.01125]
[1773536812708,0.042209,71056.0,71049.0,0.01125]
[1773536814408,0.043609,71056.0,71049.0,0.01125]
[1773536835130,0.0014,71056.0,71042.0,0.0014]
[1773536835326,0.0014,71056.0,70894.0,1.877175]
[1773536835327,0.02192609,71055.0,71034.0,0.0014]
[1773536835528,0.02192609,71045.0,71033.0,0.042222]
[1773536835922,0.02192609,71045.0,71038.0,0.01125]
[1773536836731,0.01125,71040.0,71038.0,0.01125]
[1773536837028,0.02192609,71045.0,71038.0,0.01125]
[1773536837424,0.02192609,71045.0,71033.0,0.042222]
[1773536838130,0.042216,71046.0,71036.0,0.01125]
[1773536838433,0.0014,71047.0,71036.0,0.01125]
[1773536841435,0.0673391,71047.0,71036.0,0.01125]
[1773536845139,0.042216,71045.0,71036.0,0.01125]
[1773536846041,0.0237241,71043.0,71031.0,0.042223]
[1773536846831,0.0237241,71043.0,71036.0,0.01126]
[1773536847431,0.01125,71038.0,71036.0,0.01126]
[1773536848843,0.0237241,71043.0,71032.0,0.042223]
[1773536849536,0.0237241,71043.0,71030.0,0.08916844]
[1773536849743,0.0237241,71041.0,71029.0,0.042225]
[1773536850041,0.0237241,71041.0,71030.0,0.042224]
[1773536850442,0.0237241,71041.0,71030.0,0.13139244]
[1773536850841,0.0014,71040.0,71030.0,0.13139244]
[1773536852234,0.0014,71040.0,71030.0,0.042224]
[1773536853740,0.0014,71040.0,71032.0,0.042223]
[1773536855948,0.0014,71040.0,71030.0,0.13142738]
[1773536856851,0.0014,71040.0,71023.0,0.01126]
[1773536856852,0.0659471,71034.0,71023.0,0.01126]
[1773536857035,0.0014,71033.0,71023.0,0.01126]
[1773536857440,0.043623,71033.0,71023.0,0.01126]
[1773536857639,0.0014,71033.0,71023.0,0.01126]
[1773536858547,0.0014,71033.0,71021.0,0.04223]
[1773536859739,0.0014,71033.0,71020.0,0.08920338]
[1773536859740,0.0251241,71033.0,71020.0,0.08920338]
[1773536859940,0.0251241,71033.0,71016.0,0.0014]
[1773536861048,0.0673471,71033.0,71020.0,0.04223]
[1773536863451,0.0673471,71033.0,71020.0,0.13143338]
[1773536865652,0.043623,71033.0,71020.0,0.13143338]
[1773536866352,0.0673471,71033.0,71020.0,0.13143338]
[1773536866556,0.0237241,71032.0,71020.0,0.04223]
[1773536866852,0.0659481,71032.0,71020.0,0.04223]
[1773536867947,0.0659481,71032.0,71017.0,0.042232]
[1773536867948,0.042225,71029.0,71017.0,0.042232]
[1773536871659,0.02296346,71028.0,71017.0,0.042232]
[1773536872763,0.0014,71027.0,71017.0,0.042232]
[1773536875652,0.0014,71027.0,71016.0,0.042232]
[1773536878955,0.02436346,71027.0,71013.0,0.01126]
[1773536879166,0.042229,71023.0,71013.0,0.01126]
[1773536879663,0.042229,71023.0,71011.0,0.042236]
[1773536883669,0.042228,71025.0,71012.0,0.042235]
[1773536883870,0.042228,71025.0,71013.0,0.042234]
[1773536884171,0.0014,71024.0,71013.0,0.042234]
[1773536893074,0.01125,71040.0,71015.0,0.0231125]
[1773536893280,0.02296346,71054.0,71031.0,0.0231125]
[1773536893581,0.41917247,71063.0,71020.0,0.13143338]
[1773536893582,0.042222,71034.0,71020.0,0.13143338]
[1773536893780,0.042222,71034.0,71020.0,0.08920338]
[1773536893781,0.043622,71034.0,71020.0,0.08920338]
[1773536894188,0.0014,71034.0,71022.0,0.042229]
[1773536894690,0.0014,71034.0,71027.0,0.01126]
[1773536895279,0.01126,71029.0,71027.0,0.01126]